Workbook

Sheet SolCotizacion
A1: Solicitud de Cotización | T1: =DATE(YEAR(MAX(rangofecha))+1,MONTH(MAX(rangofecha)),DAY(MAX(rangofecha))-1) -> 1900-12-30 | U1: Fecha Máxima
A3: Acuerdo Marco de SOAT
B4: Versión: 36 | C4: 2018-09-10
A5: Información de la Entidad Compradora
A7: Nombre de la Entidad: | G7: NIT:
A9: Dirección de la Entidad: | G9: Municipio:
A11: Nombre del Comprador: | G11: Teléfono:
A13: Correo del comprador: | G13: Extension:
A15: Fechas estimadas
A17: Fecha creación solicitud cotización: | E17: De acuerdo con la Resolución 4170 de 2016 del Ministerio de Transporte, la verificación de la existencia y vigencia de la Póliza SOAT debe ser realizada en el Registro Único Nacional de Tránsito (RUNT), por lo tanto, Colombia Compra Eficiente solicita amablemente a las Entidades Compradoras verificar la existencia del SOAT en el (RUNT) antes de iniciar el proceso de cotización.
A21: Artículos Solicitud de Cotización
C22: Filas a agregar o eliminar:
C23: 1 | J23: Vehículo Nuevo | K23: No
A25: No. | B25: Placa | C25: Número de Motor | D25: Número de Chasis | E25: VIN | F25: Marca | G25: Línea | H25: Modelo | I25: Servicio | J25: Toneladas | K25: Número de Pasajeros | L25: SOAT Vencido? | M25: Fecha de Inicio (Desde las 00 Horas) | N25: Vigencia Contrato en días | O25: Fecha de Vencimiento (Hasta las 24 Horas) | P25: Clase de vehículo | Q25: Subtipo | R25: Cilindraje | S25: Detalle Clase de vehículo (No afecta los precios del simulador)
A26: 1 | O26: =IF(N26<>"",IF(AND(M26>=DATE(2016,1,1),M26<=DATE(2016,2,28)),M26+N26+2,M26+N26-1),"") ->  | T26: =IF(COUNTIF(placa,B26)<=1,TRUE,FALSE) -> TRUE | U26: =IF(COUNTIF(motor,C26)<=1,TRUE,FALSE) -> TRUE | V26: =IF(COUNTIF(chasis,D26)<=1,TRUE,FALSE) -> TRUE | W26: =IF(COUNTIF(vin,E26)<=1,TRUE,FALSE) -> TRUE | Z26: 365
A30: Gravámenes adicionales (estampillas)
A32: Si los hay, indique los gravámenes adicionales (estampilllas) a los que está sujeta la Orden de Compra. Son gravámens adiconales por ejemplo; estampillas y demás impuestos territoriales. Los impuestos como ICA y retención en la fuente NO son gravámenes adicionales.
A35: No. | B35: Descripción | F35: % Gravámen
A36: 1
D38: Total Gravámenes adicionales: | F38: =SUM(F36:F36) -> 0

Sheet ResumenCotizacion
B1: Resumen de Cotización Para SOAT | R1: =G31 -> 0 | S1: =YEAR(TODAY()) -> 2018
B3: Acuerdo Marco de SOAT
B5: Información de la Entidad Compradora
B7: Nombre de la Entidad: | E7: =IF(SolCotizacion!D7="","",SolCotizacion!D7) ->  | G7: NIT: | H7: =IF(SolCotizacion!H7="","",SolCotizacion!H7) -> 
B9: Fechas estimadas
B11: Fecha creación solicitud cotización: | E11: =IF(SolCotizacion!D17="","",SolCotizacion!D17) -> 
B13: Artículos de la Cotización
C16: Vehículo | J16: Tarifa anual en el AMP del Proveedor | N16: Cotización según vigencia de compra
B17: No. | C17: Placa | D17: Código de la Tarifa | E17: Marca | F17: Clase de vehículo | G17: Detalle Clase de vehículo (No afecta los precios del simulador) | H17: Subtipo | I17: Cilindraje | J17: Prima Emitida Máxima del proveedor en el Acuerdo Marco de Precios | K17: Contribución 50% Fosyga | L17: Tasa RUNT | M17: Tarifa Máxima del proveedor en el Acuerdo Marco de Precios | N17: Prima Emitida con la nueva vigencia | O17: Contribución FOSYGA | P17: Tasa RUNT | Q17: Vigencia Contrato en días | R17: Tarifa con la nueva vigencia | S17: edad | T17: Gravámenes | U17: Valor total Tarifa
B18: 1 | M18: =ROUND(J18+K18+L18,0) -> 0 | R18: =ROUND((N18+O18)*(Q18/365)+P18,0) -> 0 | S18: 1 | T18: =(R18/(1-R1))-R18 -> 0 | U18: =ROUND(R18+T18,0) -> 0
B19: Totales | T19: SubTotal | U19: =ROUND(SUM(U18:U18),0) -> 0
T20: Valor Total | U20: =SUM(U19:U19) -> 0
B23: Gravámenes adicionales (estampillas)
B25: Si los hay, indique los gravámenes adicionales (estampilllas) a los que está sujeta la Orden de Compra. Son gravámens adiconales por ejemplo; estampillas y demás impuestos territoriales. Los impuestos como ICA y retención en la fuente NO son gravámenes adicionales.
B28: No. | C28: Descripción | G28: % Gravámen
B29: 1
E31: Total Gravámenes adicionales: | G31: =SUM(G29:G29) -> 0

Sheet solCotizacionCSV (hidden)
A1: Tipo (servicio o artÃ­culo) | B1: Cantidad | C1: CÃ³digo de unidad de medida* | D1: PosiciÃ³n | E1: Precio base | F1: Divisa | G1: DescripciÃ³n | H1: MercancÃ­a
A2: item | B2: 1 | C2: Und | E2: "0" | F2: COP | G2: soa01--101 CICLOMOTOR
A3: item | B3: 1 | C3: Und | E3: "0" | F3: COP | G3: soa01--110 MOTOS Hasta 100c.c.
A4: item | B4: 1 | C4: Und | E4: "0" | F4: COP | G4: soa01--120 MOTOS 100 a 200c.c.
A5: item | B5: 1 | C5: Und | E5: "0" | F5: COP | G5: soa01--130 MOTOS MÃ¡s de 200c.c.
A6: item | B6: 1 | C6: Und | E6: "0" | F6: COP | G6: soa01--140 MOTOS Motocarros
A7: item | B7: 1 | C7: Und | E7: "0" | F7: COP | G7: soa01--211 CAMPEROS Y CAMIONETAS Hasta 1500c.c. 0 a 9 aÃ±os
A8: item | B8: 1 | C8: Und | E8: "0" | F8: COP | G8: soa01--212 CAMPEROS Y CAMIONETAS Hasta 1500c.c. MÃ¡s de 10
A9: item | B9: 1 | C9: Und | E9: "0" | F9: COP | G9: soa01--221 CAMPEROS Y CAMIONETAS 1500 a 2500c.c. 0 a 9 aÃ±os
A10: item | B10: 1 | C10: Und | E10: "0" | F10: COP | G10: soa01--222 CAMPEROS Y CAMIONETAS 1500 a 2500c.c. MÃ¡s de 10
A11: item | B11: 1 | C11: Und | E11: "0" | F11: COP | G11: soa01--231 CAMPEROS Y CAMIONETAS MÃ¡s de 2500c.c. 0 a 9 aÃ±os
A12: item | B12: 1 | C12: Und | E12: "0" | F12: COP | G12: soa01--232 CAMPEROS Y CAMIONETAS MÃ¡s de 2500c.c. MÃ¡s de 10
A13: item | B13: 1 | C13: Und | E13: "0" | F13: COP | G13: soa01--310 CARGA O MIXTO Hasta 5 toneladas
A14: item | B14: 1 | C14: Und | E14: "0" | F14: COP | G14: soa01--320 CARGA O MIXTO 5 a 15 toneladas
A15: item | B15: 1 | C15: Und | E15: "0" | F15: COP | G15: soa01--330 CARGA O MIXTO MÃ¡s de 15 toneladas
A16: item | B16: 1 | C16: Und | E16: "0" | F16: COP | G16: soa01--410 OFICIALES ESPECIALES Hasta 1500c.c.
A17: item | B17: 1 | C17: Und | E17: "0" | F17: COP | G17: soa01--420 OFICIALES ESPECIALES 1500 a 2500c.c.
A18: item | B18: 1 | C18: Und | E18: "0" | F18: COP | G18: soa01--430 OFICIALES ESPECIALES MÃ¡s de 2500 c.c.
A19: item | B19: 1 | C19: Und | E19: "0" | F19: COP | G19: soa01--511 AUTOS FAMILIARES Hasta 1500c.c. 0 a 9 aÃ±os
A20: item | B20: 1 | C20: Und | E20: "0" | F20: COP | G20: soa01--512 AUTOS FAMILIARES Hasta 1500c.c. MÃ¡s de 10
A21: item | B21: 1 | C21: Und | E21: "0" | F21: COP | G21: soa01--521 AUTOS FAMILIARES 1500 a 2500c.c. 0 a 9 aÃ±os
A22: item | B22: 1 | C22: Und | E22: "0" | F22: COP | G22: soa01--522 AUTOS FAMILIARES 1500 a 2500c.c. MÃ¡s de 10
A23: item | B23: 1 | C23: Und | E23: "0" | F23: COP | G23: soa01--531 AUTOS FAMILIARES MÃ¡s de 2500c.c. 0 a 9 aÃ±os
A24: item | B24: 1 | C24: Und | E24: "0" | F24: COP | G24: soa01--532 AUTOS FAMILIARES MÃ¡s de 2500c.c. MÃ¡s de 10
A25: item | B25: 1 | C25: Und | E25: "0" | F25: COP | G25: soa01--611 VEHICULOS PARA SEIS O MAS PASAJEROS Hasta 2500c.c. 0 a 9 aÃ±os
A26: item | B26: 1 | C26: Und | E26: "0" | F26: COP | G26: soa01--612 VEHICULOS PARA SEIS O MAS PASAJEROS Hasta 2500c.c. MÃ¡s de 10
A27: item | B27: 1 | C27: Und | E27: "0" | F27: COP | G27: soa01--621 VEHICULOS PARA SEIS O MAS PASAJEROS MÃ¡s de 2500c.c. 0 a 9 aÃ±os
A28: item | B28: 1 | C28: Und | E28: "0" | F28: COP | G28: soa01--622 VEHICULOS PARA SEIS O MAS PASAJEROS MÃ¡s de 2500c.c. MÃ¡s de 10
A29: item | B29: 1 | C29: Und | E29: "0" | F29: COP | G29: soa01--711 AUTOS DE NEGOCIOS Y TAXIS Hasta 1500c.c. 0 a 9 aÃ±os
A30: item | B30: 1 | C30: Und | E30: "0" | F30: COP | G30: soa01--712 AUTOS DE NEGOCIOS Y TAXIS Hasta 1500c.c. MÃ¡s de 10
A31: item | B31: 1 | C31: Und | E31: "0" | F31: COP | G31: soa01--721 AUTOS DE NEGOCIOS Y TAXIS 1500 a 2500c.c. 0 a 9 aÃ±os
A32: item | B32: 1 | C32: Und | E32: "0" | F32: COP | G32: soa01--722 AUTOS DE NEGOCIOS Y TAXIS 1500 a 2500c.c. MÃ¡s de 10
A33: item | B33: 1 | C33: Und | E33: "0" | F33: COP | G33: soa01--731 AUTOS DE NEGOCIOS Y TAXIS MÃ¡s de 2500c.c. 0 a 9 aÃ±os
A34: item | B34: 1 | C34: Und | E34: "0" | F34: COP | G34: soa01--732 AUTOS DE NEGOCIOS Y TAXIS MÃ¡s de 2500c.c. MÃ¡s de 10
A35: item | B35: 1 | C35: Und | E35: "0" | F35: COP | G35: soa01--810 BUSES Y BUSETAS DE SERVICIO PUBLICO URBANO
A36: item | B36: 1 | C36: Und | E36: "0" | F36: COP | G36: soa01--910 SERVICIO PUBLICO INTERMUNICIPAL Hasta 10 pasajeros
A37: item | B37: 1 | C37: Und | E37: "0" | F37: COP | G37: soa01--920 SERVICIO PUBLICO INTERMUNICIPAL MÃ¡s de 10 pasajeros

Sheet Tarifa (hidden)
B2: TARIFAS MÁXIMAS SOAT 2018 | K2: Descuento Ofrecido | N2: Prima Emitida con Descuento | Q2: Tarifa Máxima en el Acuerdo Marco de Precios
B3: Código | C3: CLASE DE VEHICULO | D3: SUBTIPO | E3: EDAD | F3: Tasa comercial (CE04-09 SFC) | G3: Valor prima | H3: Contribución 50% Fosyga | I3: Tasa RUNT | J3: TOTAL A PAGAR | K3: % de descuento Suramericana | L3: % de descuento La Previsora | M3: % de descuento QBE | N3: Seguros Generales Suramericana S.A. | O3: La Previsora S.A. Compañía de Seguros | P3: QBE Seguros S.A | Q3: tarifa máxima Suramericana | R3: tarifa máxima La Previsora | S3: tarifa máxima QBE Compañía de Seguros | U3: Seguros Generales Suramericana S.A. | V3: La Previsora S.A. Compañía de Seguros | W3: QBE Seguros S.A
B4: 101 | C4: CICLOMOTOR | F4: 4.13 | G4: 107500 | H4: =G4/2 -> 53750 | I4: 1900 | J4: =ROUND(+I4+H4+G4,0) -> 163150 | K4: 0.16 | L4: 0.22 | M4: 0.1617 | N4: =$G4*(1-K4) -> 90300 | O4: =$G4*(1-L4) -> 83850 | P4: =$G4*(1-M4) -> 90117.25 | Q4: =ROUND(N4+H4+I4,0) -> 145950 | R4: =ROUND(+I4+H4+O4,0) -> 139500 | S4: =ROUND(+P4+H4+I4,0) -> 145767 | U4: =+N4*T4 -> 0 | V4: =O4*T4 -> 0 | W4: =P4*T4 -> 0
B5: 110 | C5: MOTOS | D5: Menos de 100 c.c. | F5: 8.6 | G5: 223900 | H5: =G5/2 -> 111950 | I5: 1900 | J5: =ROUND(+I5+H5+G5,0) -> 337750 | K5: 0.16 | L5: 0.22 | M5: 0.1617 | N5: =$G5*(1-K5) -> 188076 | O5: =$G5*(1-L5) -> 174642 | P5: 187695.37 | Q5: =ROUND(N5+H5+I5,0) -> 301926 | R5: =ROUND(+I5+H5+O5,0) -> 288492 | S5: =ROUND(+P5+H5+I5,0) -> 301545 | U5: =+N5*T5 -> 0 | V5: =O5*T5 -> 0 | W5: =P5*T5 -> 0
B6: 120 | C6: MOTOS | D6: De 100 a 200 c.c. | F6: 11.55 | G6: 300700 | H6: =G6/2 -> 150350 | I6: 1900 | J6: =ROUND(+I6+H6+G6,0) -> 452950 | K6: 0.16 | L6: 0.22 | M6: 0.1617 | N6: =$G6*(1-K6) -> 252588 | O6: =$G6*(1-L6) -> 234546 | P6: =$G6*(1-M6) -> 252076.81 | Q6: =ROUND(N6+H6+I6,0) -> 404838 | R6: =ROUND(+I6+H6+O6,0) -> 386796 | S6: =ROUND(+P6+H6+I6,0) -> 404327 | U6: =+N6*T6 -> 0 | V6: =O6*T6 -> 0 | W6: =P6*T6 -> 0
B7: 130 | C7: MOTOS | D7: Más de 200 c.c. | F7: 13.03 | G7: 339300 | H7: =G7/2 -> 169650 | I7: 1900 | J7: 510850 | K7: 0.16 | L7: 0.22 | M7: 0.1617 | N7: 285012 | O7: 264654 | P7: 284435.19 | Q7: 456562 | R7: 436204 | S7: 455985 | U7: 0 | V7: 0 | W7: 0
B8: 140 | C8: MOTOS | D8: Motocarros | F8: 13.03 | G8: 339300 | H8: 169650 | I8: 1900 | J8: 510850 | K8: 0.16 | L8: 0.22 | M8: 0.1617 | N8: 285012 | O8: 264654 | P8: 284435.19 | Q8: 456562 | R8: 436204 | S8: 455985 | U8: 0 | V8: 0 | W8: 0
B9: 211 | C9: CAMPEROS Y CAMIONETAS | D9: Menos de 1500 c.c. | E9: 0 a 9 años | F9: 13.57 | G9: 353300 | H9: 176650 | I9: 1900 | J9: 531850 | K9: 0.19 | L9: 0.19 | M9: 0.2002 | N9: 286173 | O9: 286173 | P9: 282569.34 | Q9: 464723 | R9: 464723 | S9: 461119 | U9: 0 | V9: 0 | W9: 0
B10: 212 | C10: CAMPEROS Y CAMIONETAS | D10: Menos de 1500 c.c. | E10: 10 años o mas | F10: 16.32 | G10: 424900 | H10: 212450 | I10: 1900 | J10: 639250 | K10: 0.19 | L10: 0.19 | M10: 0.2002 | N10: 344169 | O10: 344169 | P10: 339835.02 | Q10: 558519 | R10: 558519 | S10: 554185 | U10: 0 | V10: 0 | W10: 0
B11: 221 | C11: CAMPEROS Y CAMIONETAS | D11: 1500 a 2500 | E11: 0 a 9 años | F11: 16.21 | G11: 422100 | H11: 211050 | I11: 1900 | J11: 635050 | K11: 0.19 | L11: 0.19 | M11: 0.2002 | N11: 341901 | O11: 341901 | P11: 337595.58 | Q11: 554851 | R11: 554851 | S11: 550546 | U11: 0 | V11: 0 | W11: 0
B12: 222 | C12: CAMPEROS Y CAMIONETAS | D12: 1500 a 2500 | E12: 10 años o mas | F12: 19.21 | G12: 500200 | H12: 250100 | I12: 1900 | J12: 752200 | K12: 0.19 | L12: 0.19 | M12: 0.2002 | N12: 405162 | O12: 405162 | P12: 400059.96 | Q12: 657162 | R12: 657162 | S12: 652060 | U12: 0 | V12: 0 | W12: 0
B13: 231 | C13: CAMPEROS Y CAMIONETAS | D13: Más de 2500 c.c. | E13: 0 a 9 años | F13: 19.02 | G13: 495300 | H13: 247650 | I13: 1900 | J13: 744850 | K13: 0.19 | L13: 0.19 | M13: 0.2002 | N13: 401193 | O13: 401193 | P13: 396140.94 | Q13: 650743 | R13: 650743 | S13: 645691 | U13: 0 | V13: 0 | W13: 0
B14: 232 | C14: CAMPEROS Y CAMIONETAS | D14: Más de 2500 c.c. | E14: 10 años o mas | F14: 21.83 | G14: 568400 | H14: 284200 | I14: 1900 | J14: 854500 | K14: 0.19 | L14: 0.19 | M14: 0.2002 | N14: 460404 | O14: 460404 | P14: 454606.32 | Q14: 746504 | R14: 746504 | S14: 740706 | U14: 0 | V14: 0 | W14: 0
B15: 310 | C15: CARGA O MIXTO | D15: Menos de 5 toneladas | F15: 15.21 | G15: 396000 | H15: 198000 | I15: 1900 | J15: 595900 | K15: 0.19 | L15: 0.21 | M15: 0.1925 | N15: 320760 | O15: 312840 | P15: 319770 | Q15: 520660 | R15: 512740 | S15: 519670 | U15: 0 | V15: 0 | W15: 0
B16: 320 | C16: CARGA O MIXTO | D16: De 5 a 15 toneladas | F16: 21.98 | G16: 572300 | H16: 286150 | I16: 1900 | J16: 860350 | K16: 0.19 | L16: 0.21 | M16: 0.1925 | N16: 463563 | O16: 452117 | P16: 462132.25 | Q16: 751613 | R16: 740167 | S16: 750182 | U16: 0 | V16: 0 | W16: 0
B17: 330 | C17: CARGA O MIXTO | D17: Más de 15 toneladas | F17: 27.8 | G17: 723900 | H17: 361950 | I17: 1900 | J17: 1087750 | K17: 0.19 | L17: 0.21 | M17: 0.1925 | N17: 586359 | O17: 571881 | P17: 584549.25 | Q17: 950209 | R17: 935731 | S17: 948399 | U17: 0 | V17: 0 | W17: 0
B18: 410 | C18: OFICIALES ESPECIALES | D18: Menos de 1500 c.c. | F18: 17.12 | G18: 445800 | H18: 222900 | I18: 1900 | J18: 670600 | K18: 0.19 | L18: 0.21 | M18: 0.2002 | N18: 361098 | O18: 352182 | P18: 356550.84 | Q18: 585898 | R18: 576982 | S18: 581351 | U18: 0 | V18: 0 | W18: 0
B19: 420 | C19: OFICIALES ESPECIALES | D19: 1500 a 2500 | F19: 21.59 | G19: 562200 | H19: 281100 | I19: 1900 | J19: 845200 | K19: 0.19 | L19: 0.21 | M19: 0.2002 | N19: 455382 | O19: 444138 | P19: 449647.56 | Q19: 738382 | R19: 727138 | S19: 732648 | U19: 0 | V19: 0 | W19: 0
B20: 430 | C20: OFICIALES ESPECIALES | D20: Más de 2500 c.c. | F20: 25.89 | G20: 674200 | H20: 337100 | I20: 1900 | J20: 1013200 | K20: 0.19 | L20: 0.21 | M20: 0.2002 | N20: 546102 | O20: 532618 | P20: 539225.16 | Q20: 885102 | R20: 871618 | S20: 878225 | U20: 0 | V20: 0 | W20: 0
B21: 511 | C21: AUTOS FAMILIARES | D21: Menos de 1500 c.c. | E21: 0 a 9 años | F21: 7.64 | G21: 198900 | H21: 99450 | I21: 1900 | J21: 300250 | K21: 0.19 | L21: 0.21 | M21: 0.2002 | N21: 161109 | O21: 157131 | P21: 159080.22 | Q21: 262459 | R21: 258481 | S21: 260430 | U21: 0 | V21: 0 | W21: 0
B22: 512 | C22: AUTOS FAMILIARES | D22: Menos de 1500 c.c. | E22: 10 años o mas | F22: 10.14 | G22: 264000 | H22: 132000 | I22: 1900 | J22: 397900 | K22: 0.19 | L22: 0.21 | M22: 0.2002 | N22: 213840 | O22: 208560 | P22: 211147.2 | Q22: 347740 | R22: 342460 | S22: 345047 | U22: 0 | V22: 0 | W22: 0
B23: 521 | C23: AUTOS FAMILIARES | D23: 1500 a 2500 | E23: 0 a 9 años | F23: 9.31 | G23: 242400 | H23: 121200 | I23: 1900 | J23: 365500 | K23: 0.19 | L23: 0.21 | M23: 0.2002 | N23: 196344 | O23: 191496 | P23: 193871.52 | Q23: 319444 | R23: 314596 | S23: 316972 | U23: 0 | V23: 0 | W23: 0
B24: 522 | C24: AUTOS FAMILIARES | D24: 1500 a 2500 | E24: 10 años o mas | F24: 11.59 | G24: 301800 | H24: 150900 | I24: 1900 | J24: 454600 | K24: 0.19 | L24: 0.21 | M24: 0.2002 | N24: 244458 | O24: 238422 | P24: 241379.64 | Q24: 397258 | R24: 391222 | S24: 394180 | U24: 0 | V24: 0 | W24: 0
B25: 531 | C25: AUTOS FAMILIARES | D25: Más de 2500 c.c. | E25: 0 a 9 años | F25: 10.88 | G25: 283300 | H25: 141650 | I25: 1900 | J25: 426850 | K25: 0.19 | L25: 0.21 | M25: 0.2002 | N25: 229473 | O25: 223807 | P25: 226583.34 | Q25: 373023 | R25: 367357 | S25: 370133 | U25: 0 | V25: 0 | W25: 0
B26: 532 | C26: AUTOS FAMILIARES | D26: Más de 2500 c.c. | E26: 10 años o mas | F26: 12.91 | G26: 336100 | H26: 168050 | I26: 1900 | J26: 506050 | K26: 0.19 | L26: 0.21 | M26: 0.2002 | N26: 272241 | O26: 265519 | P26: 268812.78 | Q26: 442191 | R26: 435469 | S26: 438763 | U26: 0 | V26: 0 | W26: 0
B27: 611 | C27: VEHICULOS PARA SEIS O MAS PASAJEROS | D27: Menos de 2500 | E27: 0 a 9 años | F27: 13.65 | G27: 355400 | H27: 177700 | I27: 1900 | J27: 535000 | K27: 0.19 | L27: 0.21 | M27: 0.1617 | N27: 287874 | O27: 280766 | P27: 297931.82 | Q27: 467474 | R27: 460366 | S27: 477532 | U27: 0 | V27: 0 | W27: 0
B28: 612 | C28: VEHICULOS PARA SEIS O MAS PASAJEROS | D28: Menos de 2500 | E28: 10 años o mas | F28: 17.43 | G28: 453900 | H28: 226950 | I28: 1900 | J28: 682750 | K28: 0.19 | L28: 0.21 | M28: 0.1617 | N28: 367659 | O28: 358581 | P28: 380504.37 | Q28: 596509 | R28: 587431 | S28: 609354 | U28: 0 | V28: 0 | W28: 0
B29: 621 | C29: VEHICULOS PARA SEIS O MAS PASAJEROS | D29: 2500 o más | E29: 0 a 9 años | F29: 18.28 | G29: 476000 | H29: 238000 | I29: 1900 | J29: 715900 | K29: 0.19 | L29: 0.21 | M29: 0.1617 | N29: 385560 | O29: 376040 | P29: 399030.8 | Q29: 625460 | R29: 615940 | S29: 638931 | U29: 0 | V29: 0 | W29: 0
B30: 622 | C30: VEHICULOS PARA SEIS O MAS PASAJEROS | D30: 2500 o más | E30: 10 años o mas | F30: 21.96 | G30: 571800 | H30: 285900 | I30: 1900 | J30: 859600 | K30: 0.19 | L30: 0.21 | M30: 0.1617 | N30: 463158 | O30: 451722 | P30: 479339.94 | Q30: 750958 | R30: 739522 | S30: 767140 | U30: 0 | V30: 0 | W30: 0
B31: 711 | C31: AUTOS DE NEGOCIOS Y TAXIS | D31: Menos de 1500 c.c. | E31: 0 a 9 años | F31: 9.47 | G31: 246600 | H31: 123300 | I31: 1900 | J31: 371800 | K31: 0.19 | L31: 0.21 | M31: 0.1617 | N31: 199746 | O31: 194814 | P31: 206724.78 | Q31: 324946 | R31: 320014 | S31: 331925 | U31: 0 | V31: 0 | W31: 0
B32: 712 | C32: AUTOS DE NEGOCIOS Y TAXIS | D32: Menos de 1500 c.c. | E32: 10 años o mas | F32: 11.84 | G32: 308300 | H32: 154150 | I32: 1900 | J32: 464350 | K32: 0.19 | L32: 0.21 | M32: 0.1617 | N32: 249723 | O32: 243557 | P32: 258447.89 | Q32: 405773 | R32: 399607 | S32: 414498 | U32: 0 | V32: 0 | W32: 0
B33: 721 | C33: AUTOS DE NEGOCIOS Y TAXIS | D33: 1500 a 2500 | E33: 0 a 9 años | F33: 11.78 | G33: 306700 | H33: 153350 | I33: 1900 | J33: 461950 | K33: 0.19 | L33: 0.21 | M33: 0.1617 | N33: 248427 | O33: 242293 | P33: 257106.61 | Q33: 403677 | R33: 397543 | S33: 412357 | U33: 0 | V33: 0 | W33: 0
B34: 722 | C34: AUTOS DE NEGOCIOS Y TAXIS | D34: 1500 a 2500 | E34: 10 años o mas | F34: 14.57 | G34: 379400 | H34: 189700 | I34: 1900 | J34: 571000 | K34: 0.19 | L34: 0.21 | M34: 0.1617 | N34: 307314 | O34: 299726 | P34: 318051.02 | Q34: 498914 | R34: 491326 | S34: 509651 | U34: 0 | V34: 0 | W34: 0
B35: 731 | C35: AUTOS DE NEGOCIOS Y TAXIS | D35: Más de 2500 c.c. | E35: 0 a 9 años | F35: 15.21 | G35: 396000 | H35: 198000 | I35: 1900 | J35: 595900 | K35: 0.19 | L35: 0.21 | M35: 0.1617 | N35: 320760 | O35: 312840 | P35: 331966.8 | Q35: 520660 | R35: 512740 | S35: 531867 | U35: 0 | V35: 0 | W35: 0
B36: 732 | C36: AUTOS DE NEGOCIOS Y TAXIS | D36: Más de 2500 c.c. | E36: 10 años o mas | F36: 17.85 | G36: 464800 | H36: 232400 | I36: 1900 | J36: 699100 | K36: 0.19 | L36: 0.21 | M36: 0.1617 | N36: 376488 | O36: 367192 | P36: 389641.84 | Q36: 610788 | R36: 601492 | S36: 623942 | U36: 0 | V36: 0 | W36: 0
B37: 810 | C37: BUSES Y BUSETAS DE SERVICIO PUBLICO URBANO | F37: 22.72 | G37: 591600 | H37: 295800 | I37: 1900 | J37: 889300 | K37: 0.19 | L37: 0.21 | M37: 0.1925 | N37: 479196 | O37: 467364 | P37: 477717 | Q37: 776896 | R37: 765064 | S37: 775417 | U37: 0 | V37: 0 | W37: 0
B38: 910 | C38: SERVICIO PUBLICO INTERMUNICIPAL | D38: Menor 10 pasajeros | F38: 22.47 | G38: 585100 | H38: 292550 | I38: 1900 | J38: 879550 | K38: 0.19 | L38: 0.21 | M38: 0.1617 | N38: 473931 | O38: 462229 | P38: 490489.33 | Q38: 768381 | R38: 756679 | S38: 784939 | U38: 0 | V38: 0 | W38: 0
B39: 920 | C39: SERVICIO PUBLICO INTERMUNICIPAL | D39: 10 o más pasajeros | F39: 32.62 | G39: 849400 | H39: 424700 | I39: 1900 | J39: 1276000 | K39: 0.19 | L39: 0.21 | M39: 0.1617 | N39: 688014 | O39: 671026 | P39: 712052.02 | Q39: 1114614 | R39: 1097626 | S39: 1138652 | T39: 1 | U39: 688014 | V39: 671026 | W39: 712052.02
B41: SMLDV = Salarios Mínimos Legales Diarios Vigentes | N41: =SUM(U5:U39) -> 688014 | O41: =SUM(V5:V39) -> 671026 | P41: =SUM(W5:W39) -> 712052.02
B42: (1) Conforme la Circular 004 de 2009, "el valor de la prima deberá redondearse a la cifra inferior más cercana a la centena que resulte de la liquidación correspondiente."
N43: =MIN(N41:P41) -> 671026
H45: =G5*1.046 -> 234199.4 | N45: =IF(N41=$N$43,"VERDADERO","FALSO") -> FALSO | O45: =IF(O41=$N$43,"VERDADERO","FALSO") -> VERDADERO | P45: =IF(P41=$N$43,"VERDADERO","FALSO") -> FALSO

Sheet DetalleCotizacion
B1: Cotización Para SOAT | R1: =G34 -> 0
B3: Acuerdo Marco de SOAT
B5: Información del Proveedor
B7: Proveedor: | G7: NIT: | H7: =IF(OR(D7=" ",D7=""),"",VLOOKUP($D$7,Listas!$P$1:$Q$4,2,0)) -> 
B9: Información de la Entidad Compradora
B11: Nombre de la Entidad: | E11: =IF(SolCotizacion!D7="","",SolCotizacion!D7) ->  | G11: NIT: | H11: =IF(SolCotizacion!H7="","",SolCotizacion!H7) -> 
B13: Fechas estimadas
B15: Fecha creación solicitud cotización: | E15: =IF(SolCotizacion!D17="","",SolCotizacion!D17) -> 
B17: Artículos de la Cotización
C20: Vehículo | J20: Tarifa anual en el AMP del Proveedor | N20: Cotización según vigencia de compra
B21: No. | C21: Placa | D21: Código de la Tarifa | E21: Marca | F21: Clase de vehículo | G21: Detalle Clase de vehículo (No afecta los precios del simulador) | H21: Subtipo | I21: Cilindraje | J21: Prima Emitida Máxima del proveedor en el Acuerdo Marco de Precios | K21: Contribución 50% Fosyga | L21: Tasa RUNT | M21: Tarifa Máxima del proveedor en el Acuerdo Marco de Precios | N21: Prima Emitida con la nueva vigencia | O21: Contribución FOSYGA | P21: Tasa RUNT | Q21: Vigencia Contrato en días | R21: Tarifa con la nueva vigencia | S21: Descuento Adicional | T21: Tarifa + Descuento | U21: edad | V21: Gravámenes | W21: Valot total Tarifa
B22: 1 | M22: =ROUND(J22+K22+L22,0) -> 0 | R22: =ROUND((N22+O22)*(Q22/365)+P22,0) -> 0 | T22: =ROUND((N22+O22)*(Q22/365)+P22-((N22*S22%)*(Q22/365)),0) -> 0 | U22: 1 | V22: =(T22/(1-$R$1))-T22 -> 0 | W22: =ROUND(T22+V22,0) -> 0
B23: Totales | V23: SubTotal | W23: =ROUND(SUM(W22:W22),0) -> 0
V24: Valor Total | W24: =SUM(W23:W23) -> 0
B26: Gravámenes adicionales (estampillas)
B28: Si los hay, indique los gravámenes adicionales (estampilllas) a los que está sujeta la Orden de Compra. Son gravámens adiconales por ejemplo; estampillas y demás impuestos territoriales. Los impuestos como ICA y retención en la fuente NO son gravámenes adicionales.
B31: No. | C31: Descripción | G31: % Gravámen
B32: 1
E34: Total Gravámenes adicionales: | G34: =SUM(G32:G32) -> 0

Sheet Cotizacion
A1: Código | B1: Detalle Cotización | E1: Edad Vehículo | F1: Cantidad | G1: Valor
A2: 101 | B2: =A2&" "&C2&" "&D2&" "&E2 -> 101 CICLOMOTOR | C2: CICLOMOTOR | F2: 1 | G2: 0
A3: 110 | B3: =A3&" "&C3&" "&D3&" "&E3 -> 110 MOTOS Hasta 100c.c. | C3: MOTOS | D3: Hasta 100c.c. | F3: 1 | G3: 0
A4: 120 | B4: =A4&" "&C4&" "&D4&" "&E4 -> 120 MOTOS 100 a 200c.c. | C4: MOTOS | D4: 100 a 200c.c. | F4: 1 | G4: 0
A5: 130 | B5: 130 MOTOS Más de 200c.c. | C5: MOTOS | D5: Más de 200c.c. | F5: 1 | G5: 0
A6: 140 | B6: 140 MOTOS Motocarros | C6: MOTOS | D6: Motocarros | F6: 1 | G6: 0
A7: 211 | B7: 211 CAMPEROS Y CAMIONETAS Hasta 1500c.c. 0 a 9 años | C7: CAMPEROS Y CAMIONETAS | D7: Hasta 1500c.c. | E7: 0 a 9 años | F7: 1 | G7: 0
A8: 212 | B8: 212 CAMPEROS Y CAMIONETAS Hasta 1500c.c. Más de 10 | C8: CAMPEROS Y CAMIONETAS | D8: Hasta 1500c.c. | E8: Más de 10 | F8: 1 | G8: 0
A9: 221 | B9: 221 CAMPEROS Y CAMIONETAS 1500 a 2500c.c. 0 a 9 años | C9: CAMPEROS Y CAMIONETAS | D9: 1500 a 2500c.c. | E9: 0 a 9 años | F9: 1 | G9: 0
A10: 222 | B10: 222 CAMPEROS Y CAMIONETAS 1500 a 2500c.c. Más de 10 | C10: CAMPEROS Y CAMIONETAS | D10: 1500 a 2500c.c. | E10: Más de 10 | F10: 1 | G10: 0
A11: 231 | B11: 231 CAMPEROS Y CAMIONETAS Más de 2500c.c. 0 a 9 años | C11: CAMPEROS Y CAMIONETAS | D11: Más de 2500c.c. | E11: 0 a 9 años | F11: 1 | G11: 0
A12: 232 | B12: 232 CAMPEROS Y CAMIONETAS Más de 2500c.c. Más de 10 | C12: CAMPEROS Y CAMIONETAS | D12: Más de 2500c.c. | E12: Más de 10 | F12: 1 | G12: 0
A13: 310 | B13: 310 CARGA O MIXTO Hasta 5 toneladas | C13: CARGA O MIXTO | D13: Hasta 5 toneladas | F13: 1 | G13: 0
A14: 320 | B14: 320 CARGA O MIXTO 5 a 15 toneladas | C14: CARGA O MIXTO | D14: 5 a 15 toneladas | F14: 1 | G14: 0
A15: 330 | B15: 330 CARGA O MIXTO Más de 15 toneladas | C15: CARGA O MIXTO | D15: Más de 15 toneladas | F15: 1 | G15: 0
A16: 410 | B16: 410 OFICIALES ESPECIALES Hasta 1500c.c. | C16: OFICIALES ESPECIALES | D16: Hasta 1500c.c. | F16: 1 | G16: 0
A17: 420 | B17: 420 OFICIALES ESPECIALES 1500 a 2500c.c. | C17: OFICIALES ESPECIALES | D17: 1500 a 2500c.c. | F17: 1 | G17: 0
A18: 430 | B18: 430 OFICIALES ESPECIALES Más de 2500 c.c. | C18: OFICIALES ESPECIALES | D18: Más de 2500 c.c. | F18: 1 | G18: 0
A19: 511 | B19: 511 AUTOS FAMILIARES Hasta 1500c.c. 0 a 9 años | C19: AUTOS FAMILIARES | D19: Hasta 1500c.c. | E19: 0 a 9 años | F19: 1 | G19: 0
A20: 512 | B20: 512 AUTOS FAMILIARES Hasta 1500c.c. Más de 10 | C20: AUTOS FAMILIARES | D20: Hasta 1500c.c. | E20: Más de 10 | F20: 1 | G20: 0
A21: 521 | B21: 521 AUTOS FAMILIARES 1500 a 2500c.c. 0 a 9 años | C21: AUTOS FAMILIARES | D21: 1500 a 2500c.c. | E21: 0 a 9 años | F21: 1 | G21: 0
A22: 522 | B22: 522 AUTOS FAMILIARES 1500 a 2500c.c. Más de 10 | C22: AUTOS FAMILIARES | D22: 1500 a 2500c.c. | E22: Más de 10 | F22: 1 | G22: 0
A23: 531 | B23: 531 AUTOS FAMILIARES Más de 2500c.c. 0 a 9 años | C23: AUTOS FAMILIARES | D23: Más de 2500c.c. | E23: 0 a 9 años | F23: 1 | G23: 0
A24: 532 | B24: 532 AUTOS FAMILIARES Más de 2500c.c. Más de 10 | C24: AUTOS FAMILIARES | D24: Más de 2500c.c. | E24: Más de 10 | F24: 1 | G24: 0
A25: 611 | B25: 611 VEHICULOS PARA SEIS O MAS PASAJEROS Hasta 2500c.c. 0 a 9 años | C25: VEHICULOS PARA SEIS O MAS PASAJEROS | D25: Hasta 2500c.c. | E25: 0 a 9 años | F25: 1 | G25: 0
A26: 612 | B26: 612 VEHICULOS PARA SEIS O MAS PASAJEROS Hasta 2500c.c. Más de 10 | C26: VEHICULOS PARA SEIS O MAS PASAJEROS | D26: Hasta 2500c.c. | E26: Más de 10 | F26: 1 | G26: 0
A27: 621 | B27: 621 VEHICULOS PARA SEIS O MAS PASAJEROS Más de 2500c.c. 0 a 9 años | C27: VEHICULOS PARA SEIS O MAS PASAJEROS | D27: Más de 2500c.c. | E27: 0 a 9 años | F27: 1 | G27: 0
A28: 622 | B28: 622 VEHICULOS PARA SEIS O MAS PASAJEROS Más de 2500c.c. Más de 10 | C28: VEHICULOS PARA SEIS O MAS PASAJEROS | D28: Más de 2500c.c. | E28: Más de 10 | F28: 1 | G28: 0
A29: 711 | B29: 711 AUTOS DE NEGOCIOS Y TAXIS Hasta 1500c.c. 0 a 9 años | C29: AUTOS DE NEGOCIOS Y TAXIS | D29: Hasta 1500c.c. | E29: 0 a 9 años | F29: 1 | G29: 0
A30: 712 | B30: 712 AUTOS DE NEGOCIOS Y TAXIS Hasta 1500c.c. Más de 10 | C30: AUTOS DE NEGOCIOS Y TAXIS | D30: Hasta 1500c.c. | E30: Más de 10 | F30: 1 | G30: 0
A31: 721 | B31: 721 AUTOS DE NEGOCIOS Y TAXIS 1500 a 2500c.c. 0 a 9 años | C31: AUTOS DE NEGOCIOS Y TAXIS | D31: 1500 a 2500c.c. | E31: 0 a 9 años | F31: 1 | G31: 0
A32: 722 | B32: 722 AUTOS DE NEGOCIOS Y TAXIS 1500 a 2500c.c. Más de 10 | C32: AUTOS DE NEGOCIOS Y TAXIS | D32: 1500 a 2500c.c. | E32: Más de 10 | F32: 1 | G32: 0
A33: 731 | B33: 731 AUTOS DE NEGOCIOS Y TAXIS Más de 2500c.c. 0 a 9 años | C33: AUTOS DE NEGOCIOS Y TAXIS | D33: Más de 2500c.c. | E33: 0 a 9 años | F33: 1 | G33: 0
A34: 732 | B34: 732 AUTOS DE NEGOCIOS Y TAXIS Más de 2500c.c. Más de 10 | C34: AUTOS DE NEGOCIOS Y TAXIS | D34: Más de 2500c.c. | E34: Más de 10 | F34: 1 | G34: 0
A35: 810 | B35: 810 BUSES Y BUSETAS DE SERVICIO PUBLICO URBANO | C35: BUSES Y BUSETAS DE SERVICIO PUBLICO URBANO | F35: 1 | G35: 0
A36: 910 | B36: 910 SERVICIO PUBLICO INTERMUNICIPAL Hasta 10 pasajeros | C36: SERVICIO PUBLICO INTERMUNICIPAL | D36: Hasta 10 pasajeros | F36: 1 | G36: 0
A37: 920 | B37: 920 SERVICIO PUBLICO INTERMUNICIPAL Más de 10 pasajeros | C37: SERVICIO PUBLICO INTERMUNICIPAL | D37: Más de 10 pasajeros | F37: 1 | G37: 0
F38: TOTAL | G38: =SUM(G3:G37) -> 0

Sheet Listas (hidden)
A1: Servicio | B1: Proveedor | C1: CLASE DE VEHICULO | D1: MOTOSsubtipo | E1: CAMPEROSYCAMIONETASsubtipo | F1: CARGAOMIXTOsubtipo | G1: OFICIALESESPECIALESsubtipo | H1: AUTOSFAMILIARESsubtipo | I1: VEHICULOSPARASEISOMASPASAJEROSsubtipo | J1: AUTOSDENEGOCIOSYTAXISsubtipo | K1: BUSESYBUSETASDE SERVICIOPUBLICOURBANOsubtipo | L1: SERVICIOPUBLICOINTERMUNICIPALsubtipo | N1: Vencido | P1: Prvoeedor | Q1: Nit | S1: Ambulancia | T1: Bomberos | U1: Carro Fúnebre | V1: Diplomáticos | W1: Enseñanza Automotriz | X1: Fuerzas Militares Especiales | Y1: Oficial Escolar | Z1: Oficiales | AA1: Particular | AB1: Particular Escolar | AC1: Publico Intermunicipal | AD1: Publico Urbano | AE1: Trabajo Agroindustrial | AF1: Transporte de Valores
A2: Ambulancia | B2: Seguros Generales Suramericana S.A. | C2: CICLOMOTOR | D2: Menos de 100 c.c. | E2: Menos de 1500 c.c. | F2: Menos de 5 toneladas | G2: Menos de 1500 c.c. | H2: Menos de 1500 c.c. | I2: Menos de 2500 | J2: Menos de 1500 c.c. | L2: Menor 10 pasajeros | N2: Si | P2: La Previsora S.A. Compañía de Seguros | Q2: 860.002.400-2 | S2: OFICIALES ESPECIALES | T2: OFICIALES ESPECIALES | U2: AUTOS DE NEGOCIOS Y TAXIS | V2: OFICIALES ESPECIALES | W2: AUTOS DE NEGOCIOS Y TAXIS | X2: CICLOMOTOR | Y2: CAMPEROS Y CAMIONETAS | Z2: CICLOMOTOR | AA2: CICLOMOTOR | AB2: CAMPEROS Y CAMIONETAS | AC2: CAMPEROS Y CAMIONETAS | AD2: CAMPEROS Y CAMIONETAS | AE2: CARGA O MIXTO | AF2: OFICIALES ESPECIALES
A3: Bomberos | B3: La Previsora S.A. Compañía de Seguros | C3: MOTOS | D3: De 100 a 200 c.c. | E3: 1500 a 2500 | F3: De 5 a 15 toneladas | G3: 1500 a 2500 | H3: 1500 a 2500 | I3: 2500 o más | J3: 1500 a 2500 | L3: 10 o más pasajeros | N3: No | P3: Seguros Generales Suramericana S.A. | Q3: 890.903.407-9 | X3: MOTOS | Y3: OFICIALES ESPECIALES | Z3: MOTOS | AA3: MOTOS | AB3: CARGA O MIXTO | AC3: AUTOS DE NEGOCIOS Y TAXIS | AD3: AUTOS DE NEGOCIOS Y TAXIS
A4: Carro Fúnebre | B4: QBE Seguros S.A | C4: CAMPEROS Y CAMIONETAS | D4: Más de 200 c.c. | E4: Más de 2500 c.c. | F4: Más de 15 toneladas | G4: Más de 2500 c.c. | H4: Más de 2500 c.c. | J4: Más de 2500 c.c. | P4: QBE Seguros S.A | Q4: 860.002.534-0 | X4: CAMPEROS Y CAMIONETAS | Y4: AUTOS FAMILIARES | Z4: CAMPEROS Y CAMIONETAS | AA4: CAMPEROS Y CAMIONETAS | AB4: VEHICULOS PARA SEIS O MAS PASAJEROS | AC4: VEHICULOS PARA SEIS O MAS PASAJEROS | AD4: VEHICULOS PARA SEIS O MAS PASAJEROS
A5: Diplomáticos | C5: CARGA O MIXTO | D5: Motocarros | X5: CARGA O MIXTO | Y5: VEHICULOS PARA SEIS O MAS PASAJEROS | Z5: CARGA O MIXTO | AA5: CARGA O MIXTO | AB5: AUTOS DE NEGOCIOS Y TAXIS | AC5: BUSES Y BUSETAS DE SERVICIO PUBLICO URBANO | AD5: BUSES Y BUSETAS DE SERVICIO PUBLICO URBANO
A6: Enseñanza Automotriz | C6: OFICIALES ESPECIALES | X6: OFICIALES ESPECIALES | Y6: AUTOS DE NEGOCIOS Y TAXIS | Z6: OFICIALES ESPECIALES | AA6: AUTOS FAMILIARES | AB6: BUSES Y BUSETAS DE SERVICIO PUBLICO URBANO | AC6: SERVICIO PUBLICO INTERMUNICIPAL | AD6: SERVICIO PUBLICO INTERMUNICIPAL
A7: Fuerzas Militares Especiales | C7: AUTOS FAMILIARES | X7: AUTOS FAMILIARES | Y7: BUSES Y BUSETAS DE SERVICIO PUBLICO URBANO | Z7: AUTOS FAMILIARES | AA7: VEHICULOS PARA SEIS O MAS PASAJEROS | AB7: SERVICIO PUBLICO INTERMUNICIPAL
A8: Oficial Escolar | C8: VEHICULOS PARA SEIS O MAS PASAJEROS | X8: VEHICULOS PARA SEIS O MAS PASAJEROS | Y8: SERVICIO PUBLICO INTERMUNICIPAL | Z8: VEHICULOS PARA SEIS O MAS PASAJEROS | AA8: AUTOS DE NEGOCIOS Y TAXIS
A9: Oficiales | C9: AUTOS DE NEGOCIOS Y TAXIS | X9: AUTOS DE NEGOCIOS Y TAXIS | Z9: AUTOS DE NEGOCIOS Y TAXIS | AA9: BUSES Y BUSETAS DE SERVICIO PUBLICO URBANO
A10: Particular | C10: BUSES Y BUSETAS DE SERVICIO PUBLICO URBANO | X10: BUSES Y BUSETAS DE SERVICIO PUBLICO URBANO | Z10: BUSES Y BUSETAS DE SERVICIO PUBLICO URBANO | AA10: SERVICIO PUBLICO INTERMUNICIPAL
A11: Particular Escolar | C11: SERVICIO PUBLICO INTERMUNICIPAL | X11: SERVICIO PUBLICO INTERMUNICIPAL | Z11: SERVICIO PUBLICO INTERMUNICIPAL
A12: Publico Intermunicipal
A13: Publico Urbano
A14: Trabajo Agroindustrial
A15: Transporte De Valores
A17: TIPO DE VEHICULOS
A18: Automóvil
A19: Bus
A20: Buseta
A21: Camión | B21: TIPO_DE_VEHICULOS
A22: Camioneta
A23: Campero
A24: Maquinaria Agrícola
A25: Maquinaria Industrial
A26: Microbús
A27: Motocarro
A28: Motocicleta
A29: Motociclo
A30: Tracto camión
A31: Volqueta
